fUSD/lending_fUSD_20250211
["ID","MTS","AMOUNT","RATE_DAILY","PERIOD"]
[352723791,1739278242504,-5965.11,0.00010958,2]
[352723792,1739278242513,-1202.86,0.00010958,2]
[352723793,1739278242523,-500.0,0.00010958,2]
[352723794,1739278242532,-500.0,0.00010958,2]
[352723797,1739278242733,-500.0,0.00010958,2]
[352723798,1739278242742,-500.0,0.00010958,2]
[352723799,1739278242753,-1926.59,0.00010958,2]
[352723800,1739278242762,-1555.24,0.00010958,2]
[352723801,1739278242772,-653.93,0.00010958,2]
[352723802,1739278242782,-2598.82,0.00010958,2]
[352723803,1739278242791,-1015.34,0.00010958,2]
[352723804,1739278242800,-500.0,0.00010958,2]
[352723805,1739278242810,-500.0,0.00010958,2]
[352723806,1739278242819,-942.01,0.00010958,2]
[352723807,1739278242828,-1842.75,0.00010958,2]
[352723808,1739278242837,-500.0,0.00010958,2]
[352723810,1739278242846,-1077.33,0.00010958,2]
[352723811,1739278242855,-503.82641742,0.00010958,2]
[352723813,1739278242864,-500.0,0.00010958,2]
[352723815,1739278242874,-616.3,0.00010958,2]
[352723816,1739278242884,-500.0,0.00010958,2]
[352723818,1739278242893,-500.0,0.00010958,2]
[352723820,1739278242902,-500.0,0.00010958,2]
[352723822,1739278242912,-500.0,0.00010958,2]
[352723823,1739278242921,-500.0,0.00010958,2]
[352723824,1739278242930,-1580.17,0.00010958,2]
[352723825,1739278242941,-2181.92,0.00010958,2]
[352723826,1739278242950,-500.0,0.00010958,2]
[352723827,1739278242960,-3180.64,0.00010958,2]
[352723828,1739278242969,-500.0,0.00010958,2]
[352723829,1739278242979,-500.0,0.00010958,2]
[352723830,1739278242988,-500.0,0.00010958,2]
[352723831,1739278242997,-2027.18,0.00010958,2]
[352723832,1739278243008,-500.0,0.00010958,2]
[352723833,1739278243019,-500.0,0.00010958,2]
[352723834,1739278243029,-500.0,0.00010958,2]
[352723835,1739278243039,-2304.24,0.00010958,2]
[352723836,1739278243049,-500.0,0.00010958,2]
[352723837,1739278243058,-500.0,0.00010958,2]
[352723838,1739278243068,-2950.32,0.00010958,2]
[352723839,1739278243077,-500.0,0.00010958,2]
[352723840,1739278243086,-2042.44,0.00010958,2]
[352723841,1739278243096,-500.0,0.00010958,2]
[352723842,1739278243106,-500.0,0.00010958,2]
[352723843,1739278243115,-500.0,0.00010958,2]
[352723844,1739278243124,-1240.14,0.00010958,2]
[352723845,1739278243134,-1763.09,0.00010958,2]
[352723846,1739278243144,-500.0,0.00010958,2]
[352723847,1739278243153,-500.0,0.00010958,2]
[352723848,1739278243162,-970.48,0.00010958,2]
[352723849,1739278243172,-500.0,0.00010958,2]
[352723850,1739278243181,-1883.68,0.00010958,2]
[352723851,1739278243192,-633.11,0.00010958,2]
[352723852,1739278243202,-2220.97,0.00010958,2]
[352723853,1739278243212,-500.0,0.00010958,2]
[352723854,1739278243222,-912.52,0.00010958,2]
[352723855,1739278243232,-1481.28,0.00010958,2]
[352723856,1739278243241,-996.13,0.00010958,2]
[352723857,1739278243251,-519.3,0.00010958,2]
[352723858,1739278243262,-1734.44,0.00010958,2]
[352723859,1739278243272,-2083.64,0.00010958,2]
[352723860,1739278243281,-2614.03,0.00010958,2]
[352723861,1739278243294,-1387.16,0.00010958,2]
[352723862,1739278243303,-1857.46,0.00010958,2]
[352723863,1739278243312,-2024.54,0.00010958,2]
[352723864,1739278243322,-2619.86,0.00010958,2]
[352723865,1739278243331,-500.0,0.00010958,2]
[352723866,1739278243340,-500.0,0.00010958,2]
[352723867,1739278243350,-500.0,0.00010958,2]
[352723868,1739278243359,-1244.2,0.00010958,2]
[352723869,1739278243368,-500.0,0.00010958,2]
[352723870,1739278243377,-500.0,0.00010958,2]
[352723871,1739278243387,-1980.62,0.00010958,2]
[352723872,1739278243396,-500.0,0.00010958,2]
[352723873,1739278243405,-7283.82,0.00010958,2]
[352723874,1739278243415,-268.03021339,0.00010958,2]
[352723875,1739278243425,-500.0,0.00010958,2]
[352723876,1739278243434,-317.3870164,0.00010958,2]
[352723877,1739278243445,-2403.22,0.00010958,2]
[352723878,1739278243454,-3070.18,0.00010958,2]
[352723879,1739278243463,-588.52,0.00010958,2]
[352723880,1739278243473,-500.0,0.00010958,2]
[352723881,1739278243482,-500.0,0.00010958,2]
[352723883,1739278243491,-500.0,0.00010958,2]
[352723885,1739278243500,-549.56,0.00010958,2]
[352723886,1739278243510,-3509.21,0.00010958,2]
[352723887,1739278243519,-2278.5,0.00010958,2]
[352723888,1739278243529,-2055.51,0.00010958,2]
[352723889,1739278243538,-500.0,0.00010958,2]
[352723890,1739278243548,-500.0,0.00010958,2]
[352723891,1739278243557,-500.0,0.00010958,2]
[352723892,1739278243566,-554.29,0.00010958,2]
[352723893,1739278243576,-1962.07,0.00010958,2]
[352723894,1739278243585,-2181.49,0.00010958,2]
[352723895,1739278243594,-583.39,0.00010958,2]
[352723896,1739278243603,-1051.7,0.00010958,2]
[352723897,1739278243613,-581.94,0.00010958,2]
[352723898,1739278243622,-1945.79,0.00010958,2]
[352723899,1739278243631,-500.0,0.00010958,2]
[352723900,1739278243640,-500.0,0.00010958,2]
[352723901,1739278243650,-621.48649023,0.00010958,2]
[352723902,1739278243659,-500.0,0.00010958,2]
[352723903,1739278243668,-500.0,0.00010958,2]
[352723904,1739278243678,-500.0,0.00010958,2]
[352723905,1739278243688,-1962.86,0.00010958,2]
[352723906,1739278243698,-1809.85,0.00010958,2]
[352723907,1739278243707,-500.0,0.00010958,2]
[352723908,1739278243717,-2606.07,0.00010958,2]
[352723909,1739278243726,-297.09425765,0.00010958,2]
[352723910,1739278243736,-500.0,0.00010958,2]
[352723911,1739278243746,-1895.17,0.00010958,2]
[352723912,1739278243755,-3071.57,0.00010958,2]
[352723913,1739278243765,-3025.28,0.00010958,2]
[352723914,1739278243775,-500.0,0.00010958,2]
[352723915,1739278243784,-500.0,0.00010958,2]
[352723916,1739278243794,-505.96579421,0.00010958,2]
[352723917,1739278243803,-500.0,0.00010958,2]
[352723918,1739278243813,-862.77,0.00010958,2]
[352723919,1739278243822,-500.0,0.00010958,2]
[352723920,1739278243831,-500.0,0.00010958,2]
[352723921,1739278243841,-3058.38,0.00010958,2]
[352723922,1739278243851,-500.0,0.00010958,2]
[352723923,1739278243860,-5292.65,0.00010958,2]
[352723924,1739278243869,-2148.26,0.00010958,2]
[352723925,1739278243879,-656.49,0.00010958,2]
[352723926,1739278243888,-500.0,0.00010958,2]
[352723927,1739278243897,-500.0,0.00010958,2]
[352723928,1739278243907,-1229.24,0.00010958,2]
[352723929,1739278243916,-500.0,0.00010958,2]
[352723930,1739278243926,-500.0,0.00010958,2]
[352723931,1739278243935,-934.39,0.00010958,2]
[352723932,1739278243945,-500.0,0.00010958,2]
[352723933,1739278243955,-500.0,0.00010958,2]
[352723934,1739278243964,-500.0,0.00010958,2]
[352723935,1739278243973,-500.0,0.00010958,2]
[352723936,1739278243983,-2454.11,0.00010958,2]
[352723937,1739278243992,-500.0,0.00010958,2]
[352723938,1739278244001,-2451.23,0.00010958,2]
[352723939,1739278244015,-500.0,0.00010958,2]
[352723940,1739278244024,-3126.56,0.00010958,2]
[352723941,1739278244034,-500.0,0.00010958,2]
[352723942,1739278244043,-572.26,0.00010958,2]
[352723943,1739278244053,-500.0,0.00010958,2]
[352723944,1739278244062,-500.0,0.00010958,2]
[352723945,1739278244071,-500.0,0.00010958,2]
[352723946,1739278244081,-2219.74,0.00010958,2]
[352723947,1739278244091,-500.0,0.00010958,2]
[352723948,1739278244101,-2388.9,0.00010958,2]
[352723949,1739278244110,-1000.0,0.00010958,2]
[352723950,1739278244119,-500.0,0.00010958,2]
[352723951,1739278244129,-606.35146349,0.00010958,2]
[352723952,1739278244138,-500.0,0.00010958,2]
[352723953,1739278244148,-3538.48,0.00010958,2]
[352723954,1739278244157,-500.0,0.00010958,2]
[352723955,1739278244167,-500.0,0.00010958,2]
[352723956,1739278244176,-500.0,0.00010958,2]
[352723957,1739278244186,-658.21,0.00010958,2]
[352723958,1739278244195,-500.0,0.00010958,2]
[352723959,1739278244204,-621.32,0.00010958,2]
[352723960,1739278244213,-500.0,0.00010958,2]
[352723961,1739278244222,-2132.57,0.00010958,2]
[352723962,1739278244231,-1856.41,0.00010958,2]
[352723963,1739278244241,-1251.74,0.00010958,2]
[352723964,1739278244250,-500.0,0.00010958,2]
[352723965,1739278244260,-1845.05,0.00010958,2]
[352723966,1739278244269,-1420.83,0.00010958,2]
[352723967,1739278244278,-976.99,0.00010958,2]
[352723968,1739278244289,-2982.07,0.00010958,2]
[352723969,1739278244298,-500.0,0.00010958,2]
[352723970,1739278244308,-500.0,0.00010958,2]
[352723971,1739278244317,-500.0,0.00010958,2]
[352723972,1739278244326,-596.55,0.00010958,2]
[352723973,1739278244336,-500.0,0.00010958,2]
[352723974,1739278244345,-1092.76,0.00010958,2]
[352723975,1739278244354,-500.0,0.00010958,2]
[352723976,1739278244363,-974.35,0.00010958,2]
[352723977,1739278244372,-2178.57,0.00010958,2]
[352723978,1739278244382,-558.02,0.00010958,2]
[352723979,1739278244391,-1012.2,0.00010958,2]
[352723980,1739278244401,-500.0,0.00010958,2]
[352723981,1739278244410,-971.28,0.00010958,2]
[352723982,1739278244420,-967.8,0.00010958,2]
[352723983,1739278244429,-504.57956533,0.00010958,2]
[352723984,1739278244438,-2164.81,0.00010958,2]
[352723985,1739278244448,-765.49,0.00010958,2]
[352723986,1739278244457,-500.0,0.00010958,2]
[352723987,1739278244467,-500.0,0.00010958,2]
[352723988,1739278244476,-520.09266647,0.00010958,2]
[352723989,1739278244486,-763.17,0.00010958,2]
[352723990,1739278244495,-2154.22,0.00010958,2]
[352723991,1739278244504,-1703.24,0.00010958,2]
[352723992,1739278244514,-1351.56,0.00010958,2]
[352723993,1739278244523,-228.46992603,0.00010958,2]
[352723994,1739278244532,-500.0,0.00010958,2]
[352723995,1739278244541,-589.38,0.00010958,2]
[352723996,1739278244551,-1243.77,0.00010958,2]
[352723997,1739278244560,-64577.17186489,0.00010958,2]
[352723998,1739278244570,-386.49996732,0.00010958,2]
[352723999,1739278244579,-492.41,0.00010958,2]
[352724000,1739278244588,-500.0,0.00010959,2]
[352724001,1739278244598,-2000.0,0.00010959,2]
[352724002,1739278244607,-500.0,0.00010959,2]
[352724003,1739278244617,-200.0,0.00010959,2]
[352724004,1739278244626,-151.0,0.00010959,2]
[352724005,1739278244636,-151.0,0.00010959,2]
[352724006,1739278244645,-151.0,0.00010959,2]
[352724007,1739278244655,-151.0,0.00010959,2]
[352724008,1739278244664,-151.0,0.00010959,2]
[352724009,1739278244674,-151.0,0.00010959,2]
[352724010,1739278244684,-151.0,0.00010959,2]
[352724011,1739278244696,-151.0,0.00010959,2]
[352724012,1739278244705,-205.41744,0.00010959,2]
[352724013,1739278244715,-150.0,0.00010959,2]
[352724014,1739278244724,-300.0,0.00010959,2]
[352724015,1739278244734,-438.84,0.00010959,2]
[352724016,1739278244744,-438.84,0.00010959,2]
[352724017,1739278244754,-150.0,0.00010966,2]
[352724018,1739278244764,-1273.0,0.00010972,2]
[352724019,1739278244773,-491.774,0.00010972,2]
[352724020,1739278244783,-309.682,0.00010972,2]
[352724021,1739278244793,-945.846,0.00010972,2]
[352724022,1739278244803,-783.0,0.00010972,2]
[352724023,1739278244813,-1264.0,0.00010972,2]
[352724024,1739278244822,-916.364,0.00010972,2]
[352724025,1739278244831,-2954.0,0.00010972,2]
[352724026,1739278244842,-4023.0,0.00010972,2]
[352724027,1739278244851,-539.0,0.00010972,2]
[352724028,1739278244861,-150.0,0.00010972,2]
[352724029,1739278244871,-333.49,0.00010972,2]
[352724030,1739278244881,-376.867,0.00010972,2]
[352724031,1739278244890,-152.07,0.00010976,2]
[352724032,1739278244900,-152.37,0.00010976,2]
[352724033,1739278244910,-172.9679767,0.00010999,2]
[352724034,1739278244920,-11119.99942829,0.00011,2]
[352724035,1739278244930,-23731.08862975,0.00011,2]
[352724036,1739278244939,-151.0,0.00011,2]
[352724037,1739278244949,-183.493307,0.00011,2]
[352724038,1739278244958,-151.0,0.00011,2]
[352724039,1739278244968,-1457.0,0.00011,2]
[352724040,1739278244979,-658831.0,0.00011,2]
[352724041,1739278244988,-150.0,0.00011014,2]
[352724042,1739278244998,-150.0,0.00011014,2]
[352724043,1739278245008,-150.0,0.00011028,2]
[352724044,1739278245082,-150.0,0.00011046,2]
[352724045,1739278245093,-908.126,0.00011057,2]
[352724046,1739278245103,-150.0,0.00011069,2]
[352724047,1739278245112,-300.0,0.00011076,2]
[352724048,1739278245121,-300.0,0.00011077,2]
[352724049,1739278245131,-300.0,0.00011077,2]
[352724050,1739278245140,-151.0,0.00011077,2]
[352724051,1739278245149,-500.0,0.00011077,2]
[352724052,1739278245159,-348843.36952341,0.00011077,2]
[352724053,1739278245169,-151.0,0.00011077,2]
[352724054,1739278245179,-289947.59406749,0.00011078,2]
[352724055,1739278245189,-154.571206,0.00011078,2]
[352724056,1739278245198,-500.0,0.00011094,2]
[352724057,1739278245208,-500.0,0.00011094,2]
[352724058,1739278245217,-538.97,0.00011094,2]
[352724059,1739278245227,-300.0,0.00011094,2]
[352724060,1739278245236,-300.0,0.00011094,2]
[352724061,1739278245244,-1190.0,0.00011095,2]
[352724062,1739278245254,-500.0,0.00011095,2]
[352724063,1739278245263,-2497.087899,0.00011095,2]
[352724064,1739278245273,-500.0,0.00011095,2]
[352724065,1739278245283,-500.0,0.00011095,2]
[352724066,1739278245294,-500.0,0.00011095,2]
[352724067,1739278245304,-500.0,0.00011095,2]
[352724068,1739278245313,-500.0,0.00011095,2]
[352724069,1739278245323,-500.0,0.00011095,2]
[352724070,1739278245332,-500.0,0.00011095,2]
[352724071,1739278245342,-762.404245,0.00011095,2]
[352724072,1739278245352,-500.0,0.00011095,2]
[352724073,1739278245361,-500.0,0.00011095,2]
[352724074,1739278245371,-500.0,0.00011095,2]
[352724075,1739278245380,-500.0,0.00011095,2]
[352724076,1739278245389,-500.0,0.00011095,2]
[352724077,1739278245399,-500.0,0.00011095,2]
[352724078,1739278245409,-511.05282809,0.00011095,2]
[352724079,1739278245418,-622.98870203,0.00011095,2]
[352724080,1739278245428,-658.52,0.00011095,2]
[352724081,1739278245439,-500.0,0.00011095,2]
[352724082,1739278245448,-500.0,0.00011095,2]
[352724083,1739278245458,-500.0,0.00011095,2]
[352724084,1739278245467,-500.0,0.00011095,2]
[352724085,1739278245476,-500.0,0.00011095,2]
[352724086,1739278245485,-500.0,0.00011095,2]
[352724087,1739278245495,-500.0,0.00011095,2]
[352724088,1739278245504,-566.40084152,0.00011095,2]
[352724089,1739278245514,-500.0,0.00011095,2]
[352724090,1739278245524,-500.0,0.00011095,2]
[352724091,1739278245533,-500.0,0.00011095,2]
[352724092,1739278245543,-500.0,0.00011095,2]
[352724093,1739278245552,-500.0,0.00011095,2]
[352724094,1739278245562,-500.0,0.00011095,2]
[352724095,1739278245571,-500.0,0.00011095,2]
[352724096,1739278245581,-500.0,0.00011095,2]
[352724097,1739278245591,-500.0,0.00011095,2]
[352724098,1739278245600,-500.0,0.00011095,2]
[352724099,1739278245610,-500.0,0.00011095,2]
[352724100,1739278245620,-500.0,0.00011095,2]
[352724101,1739278245630,-500.0,0.00011095,2]
[352724102,1739278245640,-500.0,0.00011095,2]
[352724103,1739278245649,-500.0,0.00011095,2]
[352724104,1739278245658,-155.45480226,0.00011095,2]
[352724105,1739278245669,-628.93,0.00011095,2]
[352724106,1739278245678,-500.0,0.00011095,2]
[352724107,1739278245689,-743.32,0.00011095,2]
[352724108,1739278245698,-500.0,0.00011095,2]
[352724109,1739278245708,-500.0,0.00011095,2]
[352724110,1739278245718,-500.0,0.00011095,2]
[352724111,1739278245728,-500.0,0.00011095,2]
[352724112,1739278245737,-500.0,0.00011095,2]
[352724113,1739278245747,-500.0,0.00011095,2]
[352724114,1739278245756,-500.0,0.00011095,2]
[352724116,1739278245766,-500.0,0.00011095,2]
[352724118,1739278245775,-504.43850575,0.00011095,2]
[352724120,1739278245785,-500.0,0.00011095,2]
[352724123,1739278245796,-500.0,0.00011095,2]
[352724125,1739278245806,-500.0,0.00011095,2]
[352724127,1739278245815,-556.3,0.00011095,2]
[352724128,1739278245825,-500.0,0.00011095,2]
[352724130,1739278245835,-500.0,0.00011095,2]
[352724132,1739278245844,-1213.86,0.00011095,2]
[352724134,1739278245853,-500.0,0.00011095,2]
[352724136,1739278245862,-500.0,0.00011095,2]
[352724138,1739278245872,-500.0,0.00011095,2]
[352724140,1739278245882,-500.0,0.00011095,2]
[352724142,1739278245893,-236.20403714,0.00011095,2]
[352724144,1739278245902,-1010.15,0.00011095,2]
[352724146,1739278245913,-500.0,0.00011095,2]
[352724148,1739278245922,-500.0,0.00011095,2]
[352724150,1739278245932,-500.0,0.00011095,2]
[352724152,1739278245943,-837.11,0.00011095,2]
[352724154,1739278245952,-500.0,0.00011095,2]
[352724156,1739278245962,-500.0,0.00011095,2]
[352724158,1739278245971,-500.0,0.00011095,2]
[352724161,1739278245981,-860.99,0.00011095,2]
[352724164,1739278245991,-500.0,0.00011095,2]
[352724166,1739278246000,-500.0,0.00011095,2]
[352724168,1739278246010,-1031.03,0.00011095,2]
[352724169,1739278246023,-500.0,0.00011095,2]
[352724171,1739278246032,-500.0,0.00011095,2]
[352724172,1739278246041,-952.88,0.00011095,2]
[352724173,1739278246050,-500.0,0.00011095,2]
[352724174,1739278246060,-500.0,0.00011095,2]
[352724175,1739278246070,-500.0,0.00011095,2]
[352724176,1739278246079,-706.21,0.00011095,2]
[352724177,1739278246091,-510.63,0.00011095,2]
[352724178,1739278246100,-500.0,0.00011095,2]
[352724179,1739278246111,-514.43,0.00011095,2]
[352724180,1739278246120,-500.0,0.00011095,2]
[352724181,1739278246130,-853.31,0.00011095,2]
[352724182,1739278246139,-500.0,0.00011095,2]
[352724183,1739278246149,-500.0,0.00011095,2]
[352724184,1739278246159,-500.0,0.00011095,2]
[352724185,1739278246168,-500.0,0.00011095,2]
[352724186,1739278246178,-736.93,0.00011095,2]
[352724187,1739278246189,-500.0,0.00011095,2]
[352724188,1739278246199,-549.89,0.00011095,2]
[352724189,1739278246208,-521.07,0.00011095,2]
[352724190,1739278246218,-1034.97,0.00011095,2]
[352724191,1739278246228,-500.0,0.00011095,2]
[352724192,1739278246237,-628.42,0.00011095,2]
[352724193,1739278246247,-500.0,0.00011095,2]
[352724194,1739278246257,-500.0,0.00011095,2]
[352724195,1739278246266,-822.52,0.00011095,2]
[352724196,1739278246275,-862.9,0.00011095,2]
[352724197,1739278246285,-500.0,0.00011095,2]
[352724198,1739278246295,-500.0,0.00011095,2]
[352724199,1739278246304,-608.45,0.00011095,2]
[352724200,1739278246314,-500.0,0.00011095,2]
[352724201,1739278246323,-500.0,0.00011095,2]
[352724202,1739278246333,-521.35,0.00011095,2]
[352724203,1739278246342,-500.0,0.00011095,2]
[352724204,1739278246352,-500.0,0.00011095,2]
[352724205,1739278246362,-500.0,0.00011095,2]
[352724206,1739278246372,-500.0,0.00011095,2]
[352724207,1739278246382,-500.0,0.00011095,2]
[352724208,1739278246391,-500.0,0.00011095,2]
[352724210,1739278246400,-507.97,0.00011095,2]
[352724211,1739278246410,-500.0,0.00011095,2]
[352724212,1739278246420,-1075.77,0.00011095,2]
[352724213,1739278246430,-925.31,0.00011095,2]
[352724214,1739278246439,-500.0,0.00011095,2]
[352724215,1739278246448,-817.64,0.00011095,2]
[352724217,1739278246458,-500.0,0.00011095,2]
[352724219,1739278246468,-500.0,0.00011095,2]
[352724221,1739278246478,-500.0,0.00011095,2]
[352724223,1739278246488,-868.03,0.00011095,2]
[352724225,1739278246499,-1269.51,0.00011095,2]
[352724227,1739278246509,-500.0,0.00011095,2]
[352724229,1739278246518,-500.0,0.00011095,2]
[352724230,1739278246528,-500.0,0.00011095,2]
[352724231,1739278246537,-500.0,0.00011095,2]
[352724232,1739278246547,-500.0,0.00011095,2]
[352724233,1739278246557,-559.89,0.00011095,2]
[352724234,1739278246566,-500.0,0.00011095,2]
[352724235,1739278246576,-754.89,0.00011095,2]
[352724236,1739278246586,-500.0,0.00011095,2]
[352724237,1739278246595,-534.45,0.00011095,2]
[352724238,1739278246605,-673.72,0.00011095,2]
[352724239,1739278246614,-586.58,0.00011095,2]
[352724240,1739278246624,-379.88720067,0.00011095,2]
[352724241,1739278246633,-500.0,0.00011095,2]
[352724242,1739278246642,-500.0,0.00011095,2]
[352724243,1739278246652,-767.53,0.00011095,2]
[352724244,1739278246661,-500.0,0.00011095,2]
[352724245,1739278246671,-500.0,0.00011095,2]
[352724246,1739278246681,-384.75407931,0.00011095,2]
[352724247,1739278246691,-500.0,0.00011095,2]
[352724249,1739278246700,-500.0,0.00011095,2]
[352724250,1739278246710,-1040.12,0.00011095,2]
[352724251,1739278246720,-500.0,0.00011095,2]
[352724252,1739278246730,-518.33,0.00011095,2]
[352724253,1739278246740,-500.0,0.00011095,2]
[352724254,1739278246750,-518.26,0.00011095,2]
[352724255,1739278246760,-500.0,0.00011095,2]
[352724256,1739278246770,-500.0,0.00011095,2]
[352724257,1739278246780,-500.0,0.00011095,2]
[352724258,1739278246790,-500.0,0.00011095,2]
[352724259,1739278246800,-500.0,0.00011095,2]
[352724260,1739278246810,-500.0,0.00011095,2]
[352724261,1739278246820,-500.0,0.00011095,2]
[352724262,1739278246830,-500.0,0.00011095,2]
[352724263,1739278246840,-762.53,0.00011095,2]
[352724264,1739278246850,-1099.58,0.00011095,2]
[352724265,1739278246860,-813.47,0.00011095,2]
[352724266,1739278246870,-1210.29,0.00011095,2]
[352724267,1739278246881,-500.0,0.00011095,2]
[352724268,1739278246891,-500.0,0.00011095,2]
[352724269,1739278246900,-1160.41,0.00011095,2]
[352724270,1739278246910,-500.0,0.00011095,2]
[352724271,1739278246920,-727.04,0.00011095,2]
[352724272,1739278246931,-500.0,0.00011095,2]
[352724273,1739278246940,-500.0,0.00011095,2]
[352724274,1739278246950,-500.0,0.00011095,2]
[352724275,1739278246959,-500.0,0.00011095,2]
[352724276,1739278246969,-500.0,0.00011095,2]
[352724277,1739278246979,-500.0,0.00011095,2]
[352724278,1739278246988,-1219.2,0.00011095,2]
[352724279,1739278246998,-838.73,0.00011095,2]
[352724280,1739278247007,-500.0,0.00011095,2]
[352724281,1739278247020,-500.0,0.00011095,2]
[352724282,1739278247030,-500.0,0.00011095,2]
[352724283,1739278247040,-1240.35,0.00011095,2]
[352724284,1739278247049,-500.0,0.00011095,2]
[352724285,1739278247058,-500.0,0.00011095,2]
[352724286,1739278247068,-657.58,0.00011095,2]
[352724287,1739278247078,-500.0,0.00011095,2]
[352724288,1739278247087,-599.09,0.00011095,2]
[352724289,1739278247099,-555.14,0.00011095,2]
[352724290,1739278247110,-500.0,0.00011095,2]
[352724291,1739278247120,-500.0,0.00011095,2]
[352724292,1739278247130,-934.76,0.00011095,2]
[352724293,1739278247140,-719.34,0.00011095,2]
[352724294,1739278247150,-500.0,0.00011095,2]
[352724295,1739278247163,-500.0,0.00011095,2]
[352724296,1739278247174,-1246.38,0.00011095,2]
[352724297,1739278247184,-536.84,0.00011095,2]
[352724298,1739278247201,-500.0,0.00011095,2]
[352724299,1739278247211,-500.0,0.00011095,2]
[352724300,1739278247222,-500.0,0.00011095,2]
[352724301,1739278247232,-500.0,0.00011095,2]
[352724302,1739278247243,-500.0,0.00011095,2]
[352724303,1739278247254,-500.0,0.00011095,2]
[352724304,1739278247265,-500.0,0.00011095,2]
[352724305,1739278247276,-569.49,0.00011095,2]
[352724306,1739278247286,-500.0,0.00011095,2]
[352724307,1739278247297,-627.5,0.00011095,2]
[352724308,1739278247308,-500.0,0.00011095,2]
[352724309,1739278247318,-709.41,0.00011095,2]
[352724310,1739278247328,-500.0,0.00011095,2]
[352724311,1739278247339,-509.17,0.00011095,2]
[352724312,1739278247349,-500.0,0.00011095,2]
[352724313,1739278247360,-1298.95,0.00011095,2]
[352724314,1739278247370,-500.0,0.00011095,2]
[352724315,1739278247380,-500.0,0.00011095,2]
[352724316,1739278247390,-500.0,0.00011095,2]
[352724317,1739278247400,-500.0,0.00011095,2]
[352724318,1739278247410,-500.0,0.00011095,2]
[352724319,1739278247420,-1103.27,0.00011095,2]
[352724320,1739278247431,-500.0,0.00011095,2]
[352724321,1739278247444,-505.32404715,0.00011095,2]
[352724322,1739278247457,-500.0,0.00011095,2]
[352724323,1739278247468,-500.0,0.00011095,2]
[352724324,1739278247478,-500.0,0.00011095,2]
[352724325,1739278247488,-500.0,0.00011095,2]
[352724326,1739278247498,-500.0,0.00011095,2]
[352724327,1739278247508,-500.0,0.00011095,2]
[352724328,1739278247518,-943.71,0.00011095,2]
[352724329,1739278247529,-543.22,0.00011095,2]
[352724330,1739278247539,-500.0,0.00011095,2]
[352724331,1739278247549,-500.0,0.00011095,2]
[352724332,1739278247559,-500.0,0.00011095,2]
[352724333,1739278247570,-500.0,0.00011095,2]
[352724334,1739278247581,-500.0,0.00011095,2]
[352724335,1739278247592,-500.0,0.00011095,2]
[352724336,1739278247602,-500.0,0.00011095,2]
[352724337,1739278247612,-543.05,0.00011095,2]
[352724338,1739278247623,-1105.37,0.00011095,2]